[Event "Sants Open 2023"]
[Site "Chess.com"]
[Date "2023.08.21"]
[Round "4"]
[White "Valenzuela Gomez, Fernando"]
[Black "Amar, Elham (NORWAY)"]
[Result "0-1"]
[ECO "B12"]
[WhiteElo "2393"]
[BlackElo "2523"]
[Annotator "IM Sequera Paolini, Jose"]
[PlyCount "76"]
[EventDate "2023.??.??"]
[Source "Analyze This Pro"]
[TimeControl "40/5400+30:1800+30"]

{[%evp 0,76,30,13,104,63,84,62,66,66,76,46,37,34,28,20,40,28,28,25,46,34,64,46,
33,47,41,57,40,26,42,26,43,31,25,36,36,25,35,39,33,-5,-7,17,10,18,18,19,56,-23,
14,-3,0,6,16,6,-3,0,0,0,-7,0,0,0,-22,-22,0,-107,-117,-100,-94,-197,-167,-404,
-410,-455,-455,-952,-970]} 1. e4 {[%emt 0:16:29]} c6 {[%emt 0:00:04]} 2. d4 {
[%emt 0:00:05]} d5 {[%emt 0:00:02]} 3. e5 {[%emt 0:00:15]} c5 {[%emt 0:00:04]}
4. Nf3 {[%emt 0:00:11]} ({rechazando la principal} 4. dxc5) 4... cxd4 {[%emt 0:
00:05]} 5. Nxd4 {[%emt 0:00:06]} Nc6 {[%emt 0:00:03]} 6. Nxc6 {[%emt 0:00:08]}
({Es interesante} 6. c4 {luego de} e6 7. Nc3 Bb4 8. cxd5 Qxd5 9. Nxc6 bxc6 {
Las negras están tranquilas}) 6... bxc6 {[%emt 0:00:02]} 7. Bd3 {[%emt 0:00:
03]} e6 {[%emt 0:00:13]} 8. O-O {[%emt 0:00:46]} Ne7 {[%emt 0:00:06]} 9. Nd2 {
[%emt 0:00:34]} a5 {[%emt 0:00:05] las negras a tratar de cambiar los alfiles
de blancas y terminar el desarrollo. Las blancas a intentar de abrir un poco
el centro antes que las negras puedan enrocar} 10. Nf3 {[%emt 0:03:41]} (10. c4
Ng6 11. Nf3 Be7 12. cxd5 exd5 {activando el alfil de casillas blancas de las
negras pero hay que tener cuidado con el peón "e" de las blancas} ({en caso de
} 12... cxd5 13. g3 O-O 14. h4 f6 15. exf6 Bxf6 16. Re1 e5 17. Bxg6 hxg6 18.
Nxe5 Bf5 {posición incierta}) 13. Nd4 Qc7 ({es muy arriesgado jugar} 13...
Nxe5 14. Re1 Bg4 ({No vale} 14... Nxd3 15. Nxc6 $18) 15. Qc2 (15. f3 $2 Nxd3
16. Nxc6 Qb6+ $19) 15... Nxd3 16. Rxe7+ Qxe7 17. Qxc6+ Bd7 18. Qxa8+ Qd8 19.
Qxd5 O-O 20. b3 {las blancas pueden conservar un peón de ventaja}) (13... Bd7)
14. Qc2 Bd7 15. Re1 O-O (15... Nxe5 $4 16. Bf4 f6 17. Bxh7 $16) 16. e6 fxe6 17.
Nxe6 Bxe6 18. Rxe6 Bd6 {con posición muy complicada}) 10... Ba6 {[%emt 0:00:
38]} 11. Bxa6 {[%emt 0:00:16]} Rxa6 {[%emt 0:00:04]} 12. c4 {[%emt 0:00:30]}
Ng6 {[%emt 0:00:50]} 13. cxd5 {[%emt 0:00:13]} cxd5 {[%emt 0:12:39]} 14. Qe2 {
[%emt 0:01:00]} ({En este momento} 14. g3 {ya no causaría ningún problema}
Bc5 15. h4 Ne7) 14... Ra8 {[%emt 0:04:36]} 15. h4 {[%emt 0:00:46] sin
necesidad de hacer g3 previamente} h5 {[%emt 0:13:22]} 16. Be3 {[%emt 0:02:52]}
Be7 {[%emt 0:02:06]} 17. g3 {[%emt 0:00:04] el peón negro en h5 es ahora un
detalle que las negras deben mantener bajo supervisión} Qd7 {[%emt 0:09:33]}
18. Bd4 {[%emt 0:01:13]} Rc8 {[%emt 0:02:07]} 19. Rfd1 {[%emt 0:01:16] [#]} ({
Si,} 19. Rfc1 O-O 20. Nd2 (20. Rxc8 Rxc8 21. Nd2 Bc5 22. Bxc5 Rxc5 23. Nf3 Qc7
{las negras sin problemas}) 20... Rxc1+ 21. Rxc1 Qa4 $11) 19... Qc6 {[%emt 0:
10:36] muy atrevido provocar el cambio de la dama por las dos torres} (19...
O-O 20. Ne1 $14) ({es interesante} 19... Qb7 20. Rac1 O-O 21. Ne1 Bb4 22. Qxh5
Rxc1 23. Rxc1 Bxe1 24. Rxe1 Ne7 25. Rc1 Rc8 26. Rxc8+ Qxc8 27. Qd1 Qc4 {
las negras con su mejor pieza compensan el peón de menos}) 20. Rac1 {[%emt 0:
13:25]} Qxc1 {[%emt 0:00:43]} ({por supuesto ya no es posible huir} 20... Qb7
21. Rxc8+ Qxc8 22. Qb5+) 21. Rxc1 {[%emt 0:00:07]} Rxc1+ {[%emt 0:00:04]} 22.
Kg2 {[%emt 0:00:14]} O-O {[%emt 0:00:43]} 23. Bc3 {[%emt 0:13:06] toca el
peón solitario de "a" y también se propone evitar la reunificación familiar
de las hermanas} Rc8 {[%emt 0:10:42] [#]} 24. Nd4 {[%emt 0:04:11]} (24. Ng5 $4
Bxg5 25. hxg5 h4 {Las negras se activan demasiado}) ({Las blancas consiguen
ventaja luego de} 24. Qa6 Rc4 (24... Rc5 25. a4 Ra1 26. Bd4) 25. Qxa5 Bc5 26.
Nd2 Rg4 27. Qxc5 Nxh4+ 28. Kh2 d4 29. gxh4 $18) 24... Bb4 {[%emt 0:08:23]} 25.
Qa6 {[%emt 0:16:17] un tanto tarde!} (25. Qd2 Ra1 26. Bxb4 axb4 27. Qxb4 Rxa2 {
Aunque no será fácil, las negras deben tener las mejores oportunidades}) {
Las negras están a tiempo de responder} 25... Ne7 {[%emt 0:09:46]} 26. Nb3 {
[%emt 0:05:27]} (26. Qb7 Bxc3 27. bxc3 Kf8 28. Nb5 Rb1 29. Qa6 $13) 26... Rc2 {
[%emt 0:00:28]} 27. Qd3 {[%emt 0:04:38] [#]} R2xc3 {[%emt 0:00:04]} 28. bxc3 {
[%emt 0:00:06]} Rxc3 {[%emt 0:00:05]} 29. Qb5 {[%emt 0:02:37]} Nc6 {[%emt 0:00:
01] las negras tienen todo defendido y se proponen intentar avanzar su peón
libre} 30. a3 {[%emt 0:07:44] Las blancas quieren deshacer la armonía de las
piezas negras} Bf8 {[%emt 0:02:50] De esta manera evita perder el peón de a5}
(30... Bxa3 31. Nxa5 Rc5 32. Qa4 Rxa5 33. Qxc6 {Esto no será más que tablas})
31. a4 {[%emt 0:03:24]} (31. Nxa5 $4 Rc5 32. Qxc5 Bxc5 33. Nxc6 Bxa3 $19) 31...
Nxe5 {[%emt 0:04:35]} 32. Nxa5 {[%emt 0:00:28]} Rc5 {[%emt 0:01:05]} 33. Qa6 {
[%emt 0:00:41]} ({En caso de} 33. Qb6 Nc4 34. Nxc4 dxc4 {el campeón de Sants
2023 busca por todos los medios crear posiciones en las que se pueda intentar
la victoria} 35. a5 c3 36. a6 c2 37. a7 Rc8 38. Qb2 g6 39. Qxc2 Rxc2 40. a8=Q {
Aunque la precisión de ambas partes llegaría a la igualdad}) 33... Rc2 {
[%emt 0:01:15] a por el peón de f2} 34. Qb6 {[%emt 0:01:55]} Ng4 {[%emt 0:06:
35]} 35. Nc6 {[%emt 0:00:42] [#]} g6 $1 {[%emt 0:02:01]} (35... Rxf2+ 36. Qxf2
Nxf2 37. Kxf2 Bc5+ 38. Kf3 f6 39. a5 e5 40. a6 g5 {irá a tablas}) ({cuidado
con la tentación de jugar} 35... Bc5 $4 36. Qb8+ Kh7 37. Qb1 $18 {y este
pequeñito detalle da la victoria al blanco}) 36. a5 $4 {[%emt 0:01:11] [#]
Tanto coraje e intentos firmes sólo por ganar, finalmente dará sus frutos} (
36. Kf1 Bc5 37. Qb8+ Kg7 38. Ne5 Rxf2+ 39. Ke1 Bd4 40. Nxg4 hxg4 41. a5 Ra2 42.
Qb4 e5 43. Qb5 Ra3 {El negro aún crea potencialidades para intentar ganar la
partida}) 36... Bc5 {[%emt 0:00:19]} 37. Qb8+ {[%emt 0:00:38]} Kg7 {[%emt 0:00:
23]} 38. Kf1 {[%emt 0:00:29]} (38. Ne5 Rxf2+ 39. Kg1 Rb2+) 38... Bxf2 {[%emt 0:
00:32]} 0-1

[Event "Sants Open 2023"]
[Site "Chess.com"]
[Date "2023.08.22"]
[Round "5"]
[White "Amar, Elham (NORWAY)"]
[Black "Iermito, Sebastian"]
[Result "1/2-1/2"]
[ECO "C60"]
[WhiteElo "2523"]
[BlackElo "2509"]
[Annotator "IM Sequera Paolini, Jose"]
[PlyCount "90"]
[EventDate "2023.??.??"]
[Source "Analyze This Pro"]
[TimeControl "40/5400+30:1800+30"]

{[%evp 0,90,25,13,13,19,24,24,50,20,41,41,36,36,24,26,31,19,30,22,26,0,0,1,49,
58,40,0,1,1,-3,-31,0,0,0,-4,6,6,4,-9,-9,-26,-39,-39,-22,-20,-28,-27,-13,-13,
-21,-14,-20,-21,-39,-38,0,0,0,0,0,0,0,0,23,6,7,7,12,7,8,0,6,10,13,12,14,0,18,
36,14,14,16,22,25,23,44,60,59,44,49,28,28]} 1. e4 {[%emt 0:08:48]} e5 {[%emt 0:
00:13]} 2. Nf3 {[%emt 0:00:12]} Nc6 {[%emt 0:00:04]} 3. Bb5 {[%emt 0:00:04]}
Nge7 {[%emt 0:00:09]} 4. O-O {[%emt 0:03:53]} Ng6 {[%emt 0:00:06]} (4... g6 5.
c3 Bg7 6. d4 exd4 7. cxd4 d5 8. exd5 Nxd5 9. Bg5 Qd6 10. Re1+ Be6 11. Nbd2 $14)
5. d4 {[%emt 0:06:53]} exd4 {[%emt 0:00:10]} 6. Nxd4 {[%emt 0:02:31]} Bc5 {
[%emt 0:00:06]} 7. Nb3 {[%emt 0:06:34]} Bb6 {[%emt 0:00:04]} 8. Nc3 {[%emt 0:
00:29]} a6 {[%emt 0:01:24]} (8... d6 9. Nd5 O-O 10. a4 a6 11. Nxb6 cxb6 12. Be2
{las blancas deben conformarse con el peón débil de d6}) 9. Bd3 {[%emt 0:04:
45]} d6 {[%emt 0:01:14]} 10. Kh1 {[%emt 0:02:54]} O-O {[%emt 0:00:53]} 11. f4 {
[%emt 0:01:12]} f5 {[%emt 0:17:21]} (11... f6 12. Nd5 Ba7 13. Qh5 {luego Tf3,
f5, Th3}) 12. Nd5 {[%emt 0:18:26]} Ba7 {[%emt 0:01:39]} 13. exf5 {[%emt 0:02:
12]} (13. Nd2 {Posiblemente sea mejor reciclar este caballo hacia el centro -
flanco de rey} Nce7 14. c4) 13... Bxf5 {[%emt 0:00:21]} 14. Bxf5 {[%emt 0:00:
30]} Rxf5 {[%emt 0:00:05]} 15. Qg4 {[%emt 0:04:09]} Nge7 {[%emt 0:08:03]} (
15... Qd7 16. Be3 ({No vale} 16. Nxc7 $4 Raf8 {el caballo está atrapado ya
que al mismo tiempo hay temas de mate en la primera fila}) 16... Qf7 17. Nxc7
Rf8 18. Bxa7 Nxa7 19. Nd4 {las blancas salvan la pieza} Rxf4 20. Rxf4 Qxf4 21.
Qxf4 Rxf4 {pero la posición es igual}) 16. Nxe7+ {[%emt 0:02:36]} Nxe7 {
[%emt 0:00:03]} 17. Bd2 {[%emt 0:00:10]} Rf7 {[%emt 0:05:41]} (17... Qf8 18.
Rae1 {molestando un poco}) 18. Qe6 {[%emt 0:03:41]} Qc8 {[%emt 0:11:51]} 19.
Qxc8+ {[%emt 0:03:00]} Rxc8 {[%emt 0:00:09]} 20. g4 {[%emt 0:01:15]} Rcf8 {
[%emt 0:24:58]} 21. Rae1 {[%emt 0:07:00]} h5 {[%emt 0:06:04]} 22. gxh5 {
[%emt 0:02:19]} Nd5 {[%emt 0:08:29] [#]} 23. Na5 {[%emt 0:05:56]} Nxf4 {
[%emt 0:01:51]} 24. Nxb7 {[%emt 0:01:02]} Nxh5 {[%emt 0:00:51]} 25. Rxf7 {
[%emt 0:00:10]} Rxf7 {[%emt 0:00:01]} 26. Be3 {[%emt 0:01:16]} Bxe3 {[%emt 0:
09:10]} 27. Rxe3 {[%emt 0:00:02]} Rf2 {[%emt 0:00:13]} 28. Rc3 {[%emt 0:00:26]}
Nf4 {[%emt 0:00:05]} 29. Kg1 {[%emt 0:01:40]} Rg2+ {[%emt 0:00:01]} 30. Kf1 {
[%emt 0:00:05]} Rxh2 {[%emt 0:00:25]} 31. Rxc7 {[%emt 0:00:05]} Nd5 {[%emt 0:
00:47]} 32. Rc8+ {[%emt 0:00:51]} Kh7 {[%emt 0:00:01]} 33. Kg1 {[%emt 0:00:52]}
Rd2 {[%emt 0:00:59]} 34. Nxd6 {[%emt 0:00:19]} Ne3 {[%emt 0:00:58]} 35. Rc3 {
[%emt 0:03:39]} Nxc2 {[%emt 0:00:55]} 36. Ne4 {[%emt 0:00:05]} Re2 {[%emt 0:01:
01]} 37. Ng5+ {[%emt 0:05:17]} Kh6 {[%emt 0:00:48]} 38. Nf3 {[%emt 0:00:18]}
Ne3 {[%emt 0:01:40]} 39. Nd4 {[%emt 0:00:29]} Rg2+ {[%emt 0:00:23]} 40. Kh1 {
[%emt 0:00:00]} Rd2 {[%emt 0:00:00]} 41. Rxe3 {[%emt 0:01:27]} Rxd4 {[%emt 0:
01:57]} 42. Re6+ {[%emt 0:00:07]} g6 {[%emt 0:00:59]} 43. Rxa6 {[%emt 0:00:06]}
Rd1+ {[%emt 0:00:05]} 44. Kg2 {[%emt 0:00:03]} Rd2+ {[%emt 0:00:01]} 45. Kf3 {
[%emt 0:00:08]} Rxb2 {[%emt 0:00:05] Esta vez la fuerza y la energía del
joven Elham no fue suficiente para ganar} 1/2-1/2

[Event "Sants Open 2023"]
[Site "Chess.com"]
[Date "2023.08.23"]
[Round "6"]
[White "Mitusov, Semen"]
[Black "Amar, Elham (NORWAY)"]
[Result "0-1"]
[ECO "B12"]
[WhiteElo "2445"]
[BlackElo "2523"]
[Annotator "IM Sequera Paolini, Jose"]
[PlyCount "102"]
[EventDate "2023.??.??"]
[Source "Analyze This Pro"]
[TimeControl "40/5400+30:1800+30"]

1. e4 {[%emt 0:00:36]} c6 {[%emt 0:00:05] Repite la Carokann, defensa muy
jugada por varios de los más fuertes jóvenes catalanes} 2. d4 {[%emt 0:00:51]
} d5 {[%emt 0:00:05]} 3. e5 {[%emt 0:00:04]} c5 {[%emt 0:00:03]} 4. dxc5 {
[%emt 0:00:05]} e6 {[%emt 0:00:04]} 5. Bd3 {[%emt 0:01:10]} (5. a3 Bxc5 6. b4
Bb6 7. Qg4 Ne7 8. Nf3 (8. Qxg7 Rg8 9. Qxh7 Bd4) 8... Ng6 $13) 5... Nc6 {
[%emt 0:02:39]} 6. Nf3 {[%emt 0:09:52]} Bxc5 {[%emt 0:00:10]} 7. O-O {[%emt 0:
00:39] Sencillo, el desarrollo de ambos bandos continúa} Nge7 {[%emt 0:00:31]}
(7... f6 8. Qe2 Qc7 9. Bf4 g5 10. Bg3 g4 11. Nfd2 fxe5 12. c4 {Super complicado
}) 8. a3 {[%emt 0:00:55]} a5 {[%emt 0:00:10]} (8... Ng6 {es una variante que
puede ser muy explosiva} 9. b4 Be7 10. Re1 f6 (10... O-O 11. Nbd2) 11. Bxg6+
hxg6 12. Qd3 Kf7 13. Bb2 g5) 9. Re1 {[%emt 0:04:21]} (9. Qe2 Ng6 10. c4 d4)
9... Ng6 {[%emt 0:06:15]} 10. Be3 {[%emt 0:07:04]} Bxe3 {[%emt 0:09:25]} 11.
Rxe3 {[%emt 0:00:07]} O-O {[%emt 0:02:45]} 12. Bxg6 {[%emt 0:05:28]} (12. Nbd2
Nf4 13. Bf1 f6 14. exf6 gxf6) 12... fxg6 {[%emt 0:00:05]} 13. Nbd2 {[%emt 0:05:
23]} Bd7 {[%emt 0:08:29]} 14. c4 {[%emt 0:05:35]} Ne7 {[%emt 0:00:04]} 15. Rc1
{[%emt 0:11:41]} Bc6 {[%emt 0:12:13]} 16. Nd4 {[%emt 0:08:59]} Nf5 {[%emt 0:02:
34]} 17. Nxc6 {[%emt 0:01:47]} (17. Nxe6 Nxe3 18. fxe3 Qb6 19. Qb3 Qxb3 20.
Nxb3 Rf7 $19) 17... bxc6 {[%emt 0:01:18]} 18. Rd3 {[%emt 0:00:08]} Rb8 {
[%emt 0:04:54]} 19. b3 {[%emt 0:00:35]} Qe7 {[%emt 0:01:05]} 20. a4 {[%emt 0:
01:15]} Rf7 {[%emt 0:01:45]} 21. Nf3 {[%emt 0:01:01]} Rbf8 {[%emt 0:04:29]} 22.
Rc2 {[%emt 0:00:09]} h6 {[%emt 0:01:55]} 23. h3 {[%emt 0:00:19]} g5 {[%emt 0:
04:49]} 24. Qc1 {[%emt 0:02:15]} (24. Qd2 Qa7) 24... Nh4 {[%emt 0:01:25]} 25.
Nxh4 {[%emt 0:03:01]} gxh4 {[%emt 0:00:22]} 26. cxd5 {[%emt 0:01:05]} cxd5 {
[%emt 0:00:01]} 27. Qe1 {[%emt 0:00:33]} Qg5 {[%emt 0:00:53] [#]} 28. Qe3 $6 {
[%emt 0:02:46]} (28. Qxa5 Rxf2 (28... Qxe5 29. Re3 Qd6 30. Rce2 e5 $13) 29.
Rxf2 Qc1+ 30. Kh2 Rxf2 31. Qd8+ Kh7 32. Qxh4 Rf1 33. Qb4 Rh1+ 34. Kg3 Qg5+ 35.
Kf2 Ra1 $13) (28. Rd4 Rb7 29. Rg4 Qf5 30. Rb2 Rfb8 31. b4 axb4 32. Rgxb4 Rxb4
33. Rxb4 Rxb4 34. Qxb4 Qxe5 35. Qxh4 d4 36. a5 $11) 28... Qg6 {[%emt 0:00:35]}
29. Rdc3 {[%emt 0:08:45]} (29. Rcc3 Rxf2 30. Qxf2 Rxf2 31. Kxf2 Qf5+ $19) (29.
Rcd2 Rf5 30. Rd4 (30. Qd4 Rf4 31. Qc3 Rb4) 30... Rf3) 29... Rf3 {[%emt 0:04:55]
} 30. Qb6 {[%emt 0:00:33]} Kh7 {[%emt 0:04:57] [#]} 31. Qxa5 $4 {[%emt 0:03:43]
[#]} (31. Rxf3 Rxf3 32. Kf1 (32. Rc8 Rxh3 $19) 32... Rf5 33. Qxa5 (33. Re2 Rg5
34. f4 (34. f3 Qb1+ 35. Kf2 Qh1) 34... Qb1+ 35. Kf2 Rf5) 33... Rg5 34. f4 Rg3
35. Re2 Rxb3 36. Qd2 Ra3 {las negras tienen las mejores posibilidades}) 31...
Rxf2 {[%emt 0:02:10] El castillo blanco se derrumba} 32. Rxf2 {[%emt 0:00:06]}
Qb1+ {[%emt 0:00:03]} 33. Kh2 {[%emt 0:00:06]} Rxf2 {[%emt 0:00:03]} 34. Rf3 {
[%emt 0:05:34]} Rxf3 {[%emt 0:01:06]} 35. gxf3 {[%emt 0:00:02]} d4 {[%emt 0:05:
40]} 36. Qb4 {[%emt 0:02:12]} Qc2+ {[%emt 0:00:13]} 37. Kg1 {[%emt 0:00:10]}
Qc3 {[%emt 0:01:41]} 38. Qc4 {[%emt 0:04:31]} Qe3+ {[%emt 0:00:07]} 39. Kf1 {
[%emt 0:00:34]} Qxf3+ {[%emt 0:00:19]} 40. Ke1 {[%emt 0:00:00]} Qg3+ {[%emt 0:
00:00]} 41. Ke2 {[%emt 0:02:46]} Qe3+ {[%emt 0:03:55]} 42. Kd1 {[%emt 0:00:25]}
Qxh3 {[%emt 0:00:31]} 43. Qxd4 {[%emt 0:00:22]} Qf1+ {[%emt 0:02:00]} 44. Kd2 {
[%emt 0:00:14]} h3 {[%emt 0:00:40]} 45. Qe4+ {[%emt 0:00:21]} Qf5 {[%emt 0:00:
31]} 46. Qh1 {[%emt 0:00:09]} Qf2+ {[%emt 0:00:23]} 47. Kc3 {[%emt 0:00:29]}
Qg2 {[%emt 0:02:38]} 48. Qb1+ {[%emt 0:00:30]} Kg8 {[%emt 0:00:27]} 49. Qd3 {
[%emt 0:00:39]} Qc6+ {[%emt 0:00:11]} 50. Kb2 {[%emt 0:00:18]} h2 {[%emt 0:00:
16]} 51. Qd8+ {[%emt 0:00:05]} Kf7 {[%emt 0:00:18]} 0-1

[Event "Sants Open 2023"]
[Site "Chess.com"]
[Date "2023.08.24"]
[Round "7"]
[White "Amar, Elham (NORWAY)"]
[Black "Lamard, Guillaume"]
[Result "1-0"]
[ECO "B90"]
[WhiteElo "2523"]
[BlackElo "2526"]
[Annotator "IM Sequera Paolini, Jose"]
[PlyCount "75"]
[EventDate "2023.??.??"]
[Source "Analyze This Pro"]
[TimeControl "40/5400+30:1800+30"]

{[%evp 0,75,26,13,103,51,99,66,66,53,43,30,57,46,61,34,63,47,55,47,50,50,45,50,
37,38,42,34,61,39,108,102,87,66,153,155,136,74,112,146,133,103,99,103,104,118,
107,115,62,180,213,186,224,230,235,236,239,201,255,273,272,281,291,473,491,506,
506,527,800,547,716,955,968,1007,1029,1046,1046,608]} 1. e4 {[%emt 0:00:02]} c5
{[%emt 0:00:05]} 2. Nf3 {[%emt 0:00:16]} d6 {[%emt 0:00:03]} 3. Nc3 {[%emt 0:
01:38]} Nf6 {[%emt 0:00:18]} 4. d4 {[%emt 0:00:40]} cxd4 {[%emt 0:00:03]} 5.
Nxd4 {[%emt 0:00:05]} a6 {[%emt 0:00:03] El campeón se separa de 6.h3
practicado antes en este mismo torneo} 6. Bc4 {[%emt 0:02:30]} e6 {[%emt 0:00:
48]} 7. Bg5 {[%emt 0:00:21]} Qb6 {[%emt 0:15:04]} (7... Be7 8. O-O O-O (8... b5
9. Bb3 b4 10. Na4 Nxe4 11. Bxe7 Qxe7 12. Re1 d5 13. Nb6) 9. Re1) 8. Bb3 {
[%emt 0:08:28]} Bd7 {[%emt 0:08:39]} 9. O-O {[%emt 0:13:28]} (9. Be3 Qa5 10. f3
Nc6 11. g4 h6 12. Qd2 b5 13. a3) 9... Nc6 {[%emt 0:00:22]} 10. Be3 {[%emt 0:00:
30]} Qc7 {[%emt 0:00:28]} 11. f4 {[%emt 0:00:19]} Be7 {[%emt 0:03:36]} 12. f5 {
[%emt 0:02:57]} Nxd4 {[%emt 0:05:50]} 13. Bxd4 {[%emt 0:01:27]} b5 {[%emt 0:08:
39]} 14. fxe6 {[%emt 0:08:10]} Bxe6 {[%emt 0:03:48]} (14... fxe6 15. a4 b4 (
15... O-O 16. axb5 axb5 17. Rxa8 Rxa8 18. Qd3 b4 19. Nd5 $16) 16. Ne2 Qb7 17.
a5 Qxe4 18. Nf4 e5 19. Bb6 exf4 20. Re1 Qc6 21. Qe2) 15. Qd3 {[%emt 0:17:38]}
O-O {[%emt 0:02:05]} 16. Rae1 {[%emt 0:02:55]} Rad8 {[%emt 0:05:38]} 17. Nd5 {
[%emt 0:03:13]} Bxd5 {[%emt 0:00:30]} 18. Bxd5 {[%emt 0:00:42] [#]} Nd7 $2 {
[%emt 0:09:44] El visir en d5 es ahora en extremo poderoso} (18... Nxd5 19.
exd5 Rde8 20. Qg3 g6 21. c3 Bd8 22. Qf4 $14) 19. Qg3 {[%emt 0:00:22]} Ne5 {
[%emt 0:00:16]} 20. Re2 {[%emt 0:02:54]} Kh8 {[%emt 0:03:14]} 21. c3 {[%emt 0:
05:13]} Bf6 {[%emt 0:00:55]} 22. Ref2 {[%emt 0:00:56] Se avecina un desastre
sobre el castillo negro} Qe7 {[%emt 0:00:13]} 23. Rf5 {[%emt 0:02:40]} Nd7 {
[%emt 0:12:50]} (23... Rde8 24. b4 Rd8 25. Rh5) 24. Rxf6 {[%emt 0:03:11]} gxf6
{[%emt 0:00:45]} 25. Rxf6 {[%emt 0:00:43]} Qxf6 {[%emt 0:01:09]} 26. Qxd6 {
[%emt 0:00:54]} Qxd4+ {[%emt 0:00:22]} 27. cxd4 {[%emt 0:00:01]} f5 {[%emt 0:
00:45]} 28. Be6 {[%emt 0:02:32]} Nf6 {[%emt 0:00:23]} 29. Qe5 {[%emt 0:00:01]}
fxe4 {[%emt 0:00:54]} 30. g4 {[%emt 0:00:04]} h6 {[%emt 0:03:23]} 31. h4 {
[%emt 0:00:05]} Kh7 {[%emt 0:00:13]} 32. g5 {[%emt 0:00:20]} hxg5 {[%emt 0:00:
16]} 33. hxg5 {[%emt 0:00:02]} Kg7 {[%emt 0:02:32]} 34. d5 {[%emt 0:00:53]} e3
{[%emt 0:00:09]} 35. gxf6+ {[%emt 0:00:23]} Rxf6 {[%emt 0:00:04]} 36. Qc7+ {
[%emt 0:00:27]} Kg6 {[%emt 0:00:10]} 37. Qxd8 {[%emt 0:00:03]} e2 {[%emt 0:00:
10]} 38. Qxf6+ {[%emt 0:00:01]} 1-0

[Event "Sants Open 2023"]
[Site "Chess.com"]
[Date "2023.08.25"]
[Round "8"]
[White "Jacobson, Brandon"]
[Black "Amar, Elham (NORWAY)"]
[Result "1/2-1/2"]
[ECO "A13"]
[WhiteElo "2537"]
[BlackElo "2523"]
[Annotator "IM Sequera Paolini, Jose"]
[PlyCount "59"]
[EventDate "2023.??.??"]
[Source "Analyze This Pro"]
[TimeControl "40/5400+30:1800+30"]

{[%evp 0,59,19,-12,-6,-38,-14,-21,-17,-8,-15,-15,-5,-44,-22,-3,29,7,19,-4,11,
-11,6,3,14,28,28,5,18,19,47,47,47,54,12,0,0,0,13,17,22,21,34,38,39,39,33,41,70,
46,36,19,19,19,19,19,19,0,15,0,0,0]} 1. c4 {[%emt 0:05:32]} e6 {[%emt 0:00:04]}
2. g3 {[%emt 0:00:36]} d5 {[%emt 0:00:03]} 3. Bg2 {[%emt 0:00:06]} dxc4 {
[%emt 0:00:15]} 4. Qa4+ {[%emt 0:00:16]} Nd7 {[%emt 0:00:05]} 5. Qxc4 {[%emt 0:
00:46]} a6 {[%emt 0:00:11]} 6. Qb3 {[%emt 0:02:01]} ({También puede ser} 6.
Qc2 Ngf6 7. d4 c5 8. Nf3 b5 9. Ne5 Nd5 $13) 6... Ngf6 {[%emt 0:13:47]} 7. Nf3 {
[%emt 0:00:49]} c5 {[%emt 0:00:43]} 8. a4 {[%emt 0:04:51]} (8. d4 cxd4 9. Nxd4
Nc5 10. Qe3 Nd5) 8... Rb8 {[%emt 0:19:50]} 9. d3 {[%emt 0:01:10]} Bd6 {[%emt 0:
02:19]} 10. a5 {[%emt 0:00:07]} O-O {[%emt 0:02:26]} 11. O-O {[%emt 0:00:48]}
b5 {[%emt 0:00:25]} 12. axb6 {[%emt 0:00:06]} Nxb6 {[%emt 0:00:24] las negras
ya casi resuelven por completo la actividad de todas sus piezas, más aún la
dama blanca está expuesta.} 13. Nc3 {[%emt 0:02:24]} Bb7 {[%emt 0:06:38] la
pieza que faltaba. Aunque, de momento, obstruye a la torre y por otro lado el
peón de a6 depende de esta pieza} (13... Qc7 14. Bg5 Nbd5 15. Qc2 h6 $11) 14.
Bg5 {[%emt 0:12:36] [#]} c4 $5 {[%emt 0:09:28] sacrificio temporal de un peón
que lleva a una simplificación casi forzada} (14... Nbd5 {dejaba más la
lucha abierta} 15. Nd2 Ne3) 15. dxc4 {[%emt 0:04:50]} Qc7 {[%emt 0:00:03]} 16.
Bxf6 {[%emt 0:09:22]} gxf6 {[%emt 0:11:34]} 17. Nd2 {[%emt 0:00:43] ya luego
de esto todo se simplifica} Bxg2 {[%emt 0:00:04]} 18. Kxg2 {[%emt 0:00:03]}
Rfc8 {[%emt 0:00:07]} 19. Rfc1 {[%emt 0:25:20]} ({algunas opciones como} 19.
Nce4 {podrían complicar las cosas de manera siempre favorable para las negras,
que tienen las piezas mejor dispuestas} Be5 20. f4 (20. Rac1 f5 21. Ng5 Nd7) (
20. Rfc1 f5) 20... Bd4 21. Qd3 Rd8) 19... Nxc4 {[%emt 0:08:40]} 20. Qxc4 {
[%emt 0:00:07]} Qxc4 {[%emt 0:00:04]} 21. Nxc4 {[%emt 0:00:03]} Rxc4 {[%emt 0:
00:04]} 22. Rxa6 {[%emt 0:14:48]} Be5 {[%emt 0:00:13]} 23. Rc2 {[%emt 0:00:07]}
Bxc3 {[%emt 0:02:07]} 24. bxc3 {[%emt 0:00:13]} (24. Rxc3 Rcb4 25. Ra7 Rxb2 26.
Rcc7 Rf8 $11) 24... Rb3 {[%emt 0:00:04]} 25. Ra8+ {[%emt 0:00:24]} Kg7 {
[%emt 0:00:01]} 26. Rd2 {[%emt 0:00:05]} Rbxc3 {[%emt 0:00:14]} 27. Rdd8 {
[%emt 0:00:05]} f5 {[%emt 0:03:13]} 28. Rg8+ {[%emt 0:00:12]} Kf6 {[%emt 0:00:
47]} 29. Rh8 {[%emt 0:03:06]} Rc2 {[%emt 0:00:24]} 30. e3 {[%emt 0:02:46]}
1/2-1/2